fUSD/lending_fUSD_20250307
["ID","MTS","AMOUNT","RATE_DAILY","PERIOD"]
[355579910,1741320640769,-510.10453015,9.964e-05,2]
[355579912,1741320640778,-504.37046571,9.964e-05,2]
[355579914,1741320640787,-511.2234302,9.964e-05,2]
[355579916,1741320640796,-508.10395551,9.964e-05,2]
[355579918,1741320640808,-500.0,9.964e-05,2]
[355579920,1741320640817,-500.0,9.964e-05,2]
[355579922,1741320640826,-500.0,9.964e-05,2]
[355579924,1741320640835,-500.0,9.964e-05,2]
[355579926,1741320640845,-500.0,9.964e-05,2]
[355579928,1741320640855,-500.0,9.964e-05,2]
[355579930,1741320640864,-500.0,9.964e-05,2]
[355579932,1741320640874,-500.0,9.964e-05,2]
[355579935,1741320640884,-558.30200941,9.964e-05,2]
[355579936,1741320640893,-500.0,9.964e-05,2]
[355579938,1741320640903,-500.0,9.964e-05,2]
[355579940,1741320640912,-500.0,9.964e-05,2]
[355579943,1741320640922,-505.06552699,9.964e-05,2]
[355579944,1741320640932,-500.0,9.964e-05,2]
[355579946,1741320640942,-500.0,9.964e-05,2]
[355579948,1741320640951,-500.0,9.964e-05,2]
[355579950,1741320640960,-507.91314078,9.964e-05,2]
[355579952,1741320640969,-964.39,9.964e-05,2]
[355579954,1741320640979,-500.0,9.964e-05,2]
[355579956,1741320640988,-507.32452749,9.964e-05,2]
[355579958,1741320640997,-506.55300115,9.964e-05,2]
[355579960,1741320641007,-500.0,9.964e-05,2]
[355579962,1741320641016,-500.0,9.964e-05,2]
[355579964,1741320641026,-506.62725202,9.964e-05,2]
[355579966,1741320641035,-500.0,9.964e-05,2]
[355579968,1741320641044,-1023.9,9.964e-05,2]
[355579970,1741320641053,-512.91353952,9.964e-05,2]
[355579972,1741320641063,-500.0,9.964e-05,2]
[355579974,1741320641072,-500.0,9.964e-05,2]
[355579976,1741320641082,-500.0,9.964e-05,2]
[355579978,1741320641092,-498.0268334,9.964e-05,2]
[355579980,1741320641101,-1348.56,9.964e-05,2]
[355579982,1741320641111,-516.59101604,9.964e-05,2]
[355579984,1741320641121,-500.0,9.964e-05,2]
[355579986,1741320641131,-515.12222088,9.964e-05,2]
[355579988,1741320641141,-504.52186218,9.964e-05,2]
[355579990,1741320641150,-511.27298973,9.964e-05,2]
[355579992,1741320641160,-1199.3585751,9.964e-05,2]
[355579995,1741320641170,-820.12,9.964e-05,2]
[355579996,1741320641181,-520.88277574,9.964e-05,2]
[355579998,1741320641190,-535.01437251,9.964e-05,2]
[355580000,1741320641199,-508.35614232,9.964e-05,2]
[355580002,1741320641209,-508.84772117,9.964e-05,2]
[355580004,1741320641218,-500.0,9.964e-05,2]
[355580006,1741320641228,-500.0,9.964e-05,2]
[355580008,1741320641237,-500.0,9.964e-05,2]
[355580010,1741320641247,-504.12169068,9.964e-05,2]
[355580012,1741320641256,-509.84114422,9.964e-05,2]
[355580014,1741320641265,-500.0,9.964e-05,2]
[355580016,1741320641274,-500.0,9.964e-05,2]
[355580018,1741320641284,-508.94897323,9.964e-05,2]
[355580020,1741320641294,-507.85179414,9.964e-05,2]
[355580022,1741320641303,-500.0,9.964e-05,2]
[355580024,1741320641312,-500.0,9.964e-05,2]
[355580026,1741320641321,-507.8820126,9.964e-05,2]
[355580028,1741320641331,-507.96139531,9.964e-05,2]
[355580029,1741320641341,-515.69510332,9.964e-05,2]
[355580030,1741320641350,-1000.0,9.964e-05,2]
[355580031,1741320641360,-505.19934658,9.964e-05,2]
[355580032,1741320641370,-513.0986724,9.964e-05,2]
[355580033,1741320641380,-500.0,9.964e-05,2]
[355580034,1741320641389,-500.0,9.964e-05,2]
[355580035,1741320641400,-500.0,9.964e-05,2]
[355580036,1741320641409,-1011.03,9.964e-05,2]
[355580037,1741320641418,-517.12849872,9.964e-05,2]
[355580038,1741320641428,-503.64585455,9.964e-05,2]
[355580039,1741320641437,-504.5196669,9.964e-05,2]
[355580040,1741320641446,-503.71344579,9.964e-05,2]
[355580041,1741320641455,-503.18387306,9.964e-05,2]
[355580042,1741320641465,-506.03018142,9.964e-05,2]
[355580043,1741320641474,-505.43469728,9.964e-05,2]
[355580044,1741320641483,-500.0,9.964e-05,2]
[355580045,1741320641491,-503.02536012,9.964e-05,2]
[355580046,1741320641500,-504.71804829,9.964e-05,2]
[355580047,1741320641509,-500.0,9.964e-05,2]
[355580048,1741320641519,-504.93723165,9.964e-05,2]
[355580049,1741320641528,-509.21386872,9.964e-05,2]
[355580050,1741320641537,-555.18683307,9.964e-05,2]
[355580051,1741320641546,-500.0,9.964e-05,2]
[355580052,1741320641556,-518.96391516,9.964e-05,2]
[355580053,1741320641566,-443.20044569,9.964e-05,2]
[355580054,1741320641576,-502.03445154,9.964e-05,2]
[355580055,1741320641585,-500.0,9.964e-05,2]
[355580056,1741320641594,-500.0,9.964e-05,2]
[355580057,1741320641603,-504.70587366,9.964e-05,2]
[355580058,1741320641612,-506.61831993,9.964e-05,2]
[355580059,1741320641622,-507.2378423,9.964e-05,2]
[355580060,1741320641631,-500.0,9.964e-05,2]
[355580061,1741320641641,-503.66545032,9.964e-05,2]
[355580062,1741320641650,-294.211909,9.964e-05,2]
[355580063,1741320641659,-500.0,9.964e-05,2]
[355580064,1741320641669,-500.0,9.964e-05,2]
[355580065,1741320641679,-500.0,9.964e-05,2]
[355580066,1741320641689,-500.0,9.964e-05,2]
[355580067,1741320641701,-1070.37,9.964e-05,2]
[355580068,1741320641711,-500.0,9.964e-05,2]
[355580069,1741320641720,-500.0,9.964e-05,2]
[355580070,1741320641729,-1352.71,9.964e-05,2]
[355580071,1741320641740,-500.0,9.964e-05,2]
[355580072,1741320641749,-500.0,9.964e-05,2]
[355580073,1741320641758,-500.0,9.964e-05,2]
[355580074,1741320641767,-502.24972517,9.964e-05,2]
[355580075,1741320641778,-503.27630629,9.964e-05,2]
[355580076,1741320641788,-503.49146089,9.964e-05,2]
[355580077,1741320641798,-510.12269574,9.964e-05,2]
[355580078,1741320641807,-508.61766896,9.964e-05,2]
[355580079,1741320641816,-1487.43,9.964e-05,2]
[355580080,1741320641826,-504.30122593,9.964e-05,2]
[355580081,1741320641835,-500.0,9.964e-05,2]
[355580082,1741320641844,-510.27792673,9.964e-05,2]
[355580083,1741320641853,-505.20074296,9.964e-05,2]
[355580084,1741320641862,-510.18242772,9.964e-05,2]
[355580085,1741320641871,-507.06679905,9.964e-05,2]
[355580086,1741320641880,-502.55668553,9.964e-05,2]
[355580087,1741320641889,-1929.77,9.964e-05,2]
[355580088,1741320641899,-500.0,9.964e-05,2]
[355580089,1741320641908,-1782.6,9.964e-05,2]
[355580090,1741320641918,-506.89791061,9.964e-05,2]
[355580091,1741320641927,-507.32524684,9.964e-05,2]
[355580092,1741320641936,-502.7767815,9.964e-05,2]
[355580093,1741320641946,-501.8815587,9.964e-05,2]
[355580094,1741320641956,-1418.23,9.964e-05,2]
[355580095,1741320641965,-500.0,9.964e-05,2]
[355580096,1741320641974,-509.35276484,9.964e-05,2]
[355580097,1741320641983,-503.35650823,9.964e-05,2]
[355580098,1741320641992,-500.0,9.964e-05,2]
[355580099,1741320642002,-509.83797906,9.964e-05,2]
[355580100,1741320642011,-500.0,9.964e-05,2]
[355580101,1741320642020,-437.35700558,9.964e-05,2]
[355580102,1741320642029,-500.0,9.964e-05,2]
[355580103,1741320642038,-2293.28,9.964e-05,2]
[355580104,1741320642047,-1755.73,9.964e-05,2]
[355580105,1741320642057,-503.72522425,9.964e-05,2]
[355580106,1741320642066,-1081.46,9.964e-05,2]
[355580107,1741320642075,-505.18883386,9.964e-05,2]
[355580108,1741320642084,-511.70784382,9.964e-05,2]
[355580109,1741320642095,-4700.24,9.964e-05,2]
[355580110,1741320642105,-3512.73,9.964e-05,2]
[355580111,1741320642114,-505.09823912,9.964e-05,2]
[355580112,1741320642123,-831.41,9.964e-05,2]
[355580113,1741320642133,-500.0,9.964e-05,2]
[355580114,1741320642142,-500.0,9.964e-05,2]
[355580115,1741320642151,-3332.03,9.964e-05,2]
[355580116,1741320642160,-543.83,9.964e-05,2]
[355580117,1741320642169,-508.25525965,9.964e-05,2]
[355580118,1741320642178,-501.6282795,9.964e-05,2]
[355580119,1741320642189,-505.54917919,9.964e-05,2]
[355580120,1741320642198,-872.82,9.964e-05,2]
[355580121,1741320642207,-19214.95,9.964e-05,2]
[355580122,1741320642217,-500.0,9.964e-05,2]
[355580123,1741320642226,-507.7209194,9.964e-05,2]
[355580124,1741320642236,-500.0,9.964e-05,2]
[355580125,1741320642246,-500.0,9.964e-05,2]
[355580126,1741320642256,-509.17367643,9.964e-05,2]
[355580127,1741320642265,-503.7779128,9.964e-05,2]
[355580128,1741320642275,-6241.94,9.964e-05,2]
[355580129,1741320642284,-504.43442396,9.964e-05,2]
[355580130,1741320642293,-500.0,9.964e-05,2]
[355580131,1741320642303,-5636.0,9.964e-05,2]
[355580132,1741320642312,-504.97153197,9.964e-05,2]
[355580133,1741320642321,-607.25381325,9.964e-05,2]
[355580134,1741320642331,-505.04823514,9.964e-05,2]
[355580135,1741320642341,-505.32229023,9.964e-05,2]
[355580136,1741320642351,-2555.84,9.964e-05,2]
[355580137,1741320642360,-500.0,9.964e-05,2]
[355580138,1741320642370,-502.77387951,9.964e-05,2]
[355580139,1741320642380,-500.0,9.964e-05,2]
[355580140,1741320642390,-2168.33,9.964e-05,2]
[355580141,1741320642400,-506.50953323,9.964e-05,2]
[355580142,1741320642409,-2146.13,9.964e-05,2]
[355580143,1741320642419,-500.0,9.964e-05,2]
[355580144,1741320642429,-716.62,9.964e-05,2]
[355580145,1741320642438,-500.0,9.964e-05,2]
[355580146,1741320642448,-496.6022148,9.964e-05,2]
[355580147,1741320642457,-532.61460479,9.964e-05,2]
[355580148,1741320642466,-3383.85,9.964e-05,2]
[355580149,1741320642475,-505.22108645,9.964e-05,2]
[355580150,1741320642485,-1477.93,9.964e-05,2]
[355580151,1741320642494,-665.22,9.964e-05,2]
[355580152,1741320642503,-422.25704131,9.964e-05,2]
[355580153,1741320642512,-500.0,9.964e-05,2]
[355580154,1741320642523,-334.20203046,9.964e-05,2]
[355580155,1741320642534,-500.0,9.964e-05,2]
[355580156,1741320642543,-503.48220369,9.964e-05,2]
[355580157,1741320642553,-500.0,9.964e-05,2]
[355580158,1741320642562,-500.0,9.964e-05,2]
[355580159,1741320642573,-500.0,9.964e-05,2]
[355580160,1741320642582,-505.77447029,9.964e-05,2]
[355580161,1741320642592,-262.67581602,9.964e-05,2]
[355580162,1741320642601,-504.10430103,9.964e-05,2]
[355580163,1741320642610,-508.45903894,9.964e-05,2]
[355580164,1741320642620,-500.0,9.964e-05,2]
[355580165,1741320642629,-2243.86,9.964e-05,2]
[355580166,1741320642639,-522.48910051,9.964e-05,2]
[355580167,1741320642648,-503.83949905,9.964e-05,2]
[355580168,1741320642658,-2613.4,9.964e-05,2]
[355580169,1741320642668,-511.58297772,9.964e-05,2]
[355580170,1741320642677,-500.0,9.964e-05,2]
[355580171,1741320642687,-1757.85,9.964e-05,2]
[355580172,1741320642699,-506.95924807,9.964e-05,2]
[355580173,1741320642708,-500.0,9.964e-05,2]
[355580174,1741320642718,-15548.5,9.964e-05,2]
[355580175,1741320642727,-506.20950371,9.964e-05,2]
[355580176,1741320642738,-549.03440451,9.964e-05,2]
[355580177,1741320642748,-500.0,9.964e-05,2]
[355580178,1741320642757,-503.03238249,9.964e-05,2]
[355580179,1741320642767,-1117.34,9.964e-05,2]
[355580180,1741320642776,-500.0,9.964e-05,2]
[355580181,1741320642786,-511.40248368,9.964e-05,2]
[355580182,1741320642795,-500.0,9.964e-05,2]
[355580183,1741320642804,-503.12547385,9.964e-05,2]
[355580184,1741320642814,-500.0,9.964e-05,2]
[355580185,1741320642823,-500.0,9.964e-05,2]
[355580186,1741320642833,-503.04895553,9.964e-05,2]
[355580187,1741320642842,-3937.06,9.964e-05,2]
[355580189,1741320642851,-500.0,9.964e-05,2]
[355580190,1741320642860,-503.07233945,9.964e-05,2]
[355580191,1741320642869,-500.0,9.964e-05,2]
[355580192,1741320642879,-505.18158115,9.964e-05,2]
[355580193,1741320642888,-512.50782902,9.964e-05,2]
[355580194,1741320642898,-2538.4,9.964e-05,2]
[355580195,1741320642907,-1852.82,9.964e-05,2]
[355580196,1741320642916,-1276.68,9.964e-05,2]
[355580197,1741320642925,-502.18988586,9.964e-05,2]
[355580198,1741320642935,-500.0,9.964e-05,2]
[355580199,1741320642944,-363.66834106,9.964e-05,2]
[355580200,1741320642953,-500.0,9.964e-05,2]
[355580201,1741320642963,-500.0,9.964e-05,2]
[355580202,1741320642972,-502.83783769,9.964e-05,2]
[355580203,1741320642981,-500.0,9.964e-05,2]
[355580205,1741320642991,-2101.83,9.964e-05,2]
[355580206,1741320643001,-507.02,9.964e-05,2]
[355580207,1741320643011,-505.51839387,9.964e-05,2]
[355580208,1741320643020,-500.0,9.964e-05,2]
[355580209,1741320643030,-508.48909527,9.964e-05,2]
[355580210,1741320643039,-1086.6,9.964e-05,2]
[355580211,1741320643231,-505.75192396,9.964e-05,2]
[355580212,1741320643240,-500.0,9.964e-05,2]
[355580213,1741320643250,-6390.04,9.964e-05,2]
[355580214,1741320643259,-500.0,9.964e-05,2]
[355580215,1741320643268,-502.38954113,9.964e-05,2]
[355580216,1741320643278,-1592.8,9.964e-05,2]
[355580217,1741320643287,-506.51296965,9.964e-05,2]
[355580218,1741320643296,-500.0,9.964e-05,2]
[355580219,1741320643306,-500.0,9.964e-05,2]
[355580220,1741320643316,-500.0,9.964e-05,2]
[355580221,1741320643325,-3459.88,9.964e-05,2]
[355580222,1741320643334,-508.02754662,9.964e-05,2]
[355580223,1741320643343,-503.57097197,9.964e-05,2]
[355580224,1741320643352,-219.49090037,9.964e-05,2]
[355580225,1741320643361,-1513.61,9.964e-05,2]
[355580226,1741320643371,-500.0,9.964e-05,2]
[355580227,1741320643380,-500.0,9.964e-05,2]
[355580228,1741320643391,-500.0,9.964e-05,2]
[355580229,1741320643400,-500.0,9.964e-05,2]
[355580230,1741320643410,-500.0,9.964e-05,2]
[355580231,1741320643419,-500.0,9.964e-05,2]
[355580232,1741320643428,-500.0,9.964e-05,2]
[355580233,1741320643438,-503.02638063,9.964e-05,2]
[355580234,1741320643447,-500.0,9.964e-05,2]
[355580235,1741320643456,-500.0,9.964e-05,2]
[355580236,1741320643465,-1321.9,9.964e-05,2]
[355580237,1741320643475,-3659.58,9.964e-05,2]
[355580238,1741320643484,-500.0,9.964e-05,2]
[355580239,1741320643493,-208.5002172,9.964e-05,2]
[355580240,1741320643503,-1432.02,9.964e-05,2]
[355580241,1741320643512,-500.0,9.964e-05,2]
[355580242,1741320643521,-500.0,9.964e-05,2]
[355580243,1741320643531,-2163.11,9.964e-05,2]
[355580244,1741320643541,-500.0,9.964e-05,2]
[355580245,1741320643551,-502.79869019,9.964e-05,2]
[355580246,1741320643560,-508.85540585,9.964e-05,2]
[355580247,1741320643569,-500.0,9.964e-05,2]
[355580248,1741320643579,-500.0,9.964e-05,2]
[355580249,1741320643588,-500.0,9.964e-05,2]
[355580250,1741320643598,-2985.79,9.964e-05,2]
[355580251,1741320643607,-500.34823242,9.964e-05,2]
[355580252,1741320643616,-503.32686499,9.964e-05,2]
[355580253,1741320643626,-500.0,9.964e-05,2]
[355580254,1741320643635,-500.0,9.964e-05,2]
[355580255,1741320643644,-500.0,9.964e-05,2]
[355580256,1741320643653,-509.854545,9.964e-05,2]
[355580257,1741320643663,-516.89195181,9.964e-05,2]
[355580258,1741320643673,-503.48320799,9.964e-05,2]
[355580259,1741320643683,-503.00526047,9.964e-05,2]
[355580260,1741320643695,-963.44,9.964e-05,2]
[355580261,1741320643705,-500.0,9.964e-05,2]
[355580262,1741320643715,-510.39922992,9.964e-05,2]
[355580263,1741320643725,-501.79954998,9.964e-05,2]
[355580264,1741320643735,-500.0,9.964e-05,2]
[355580265,1741320643745,-525.35852236,9.964e-05,2]
[355580266,1741320643754,-500.0,9.964e-05,2]
[355580267,1741320643764,-500.0,9.964e-05,2]
[355580268,1741320643775,-500.0,9.964e-05,2]
[355580269,1741320643784,-502.1663098,9.964e-05,2]
[355580270,1741320643794,-1680.28,9.964e-05,2]
[355580271,1741320643803,-500.20780608,9.964e-05,2]
[355580272,1741320643812,-948.98,9.964e-05,2]
[355580273,1741320643822,-516.80097061,9.964e-05,2]
[355580274,1741320643831,-500.0,9.964e-05,2]
[355580275,1741320643841,-2746.9006116,9.964e-05,2]
[355580276,1741320643850,-510.57056506,9.964e-05,2]
[355580277,1741320643859,-505.60539584,9.964e-05,2]
[355580278,1741320643868,-531.39954966,9.964e-05,2]
[355580279,1741320643879,-507.73781442,9.965e-05,2]
[355580280,1741320643888,-500.0,9.965e-05,2]
[355580281,1741320643897,-500.0,9.965e-05,2]
[355580282,1741320643907,-500.0,9.965e-05,2]
[355580283,1741320643916,-500.0,9.965e-05,2]
[355580284,1741320643925,-511.31493759,9.965e-05,2]
[355580285,1741320643935,-526.21912575,9.965e-05,2]
[355580286,1741320643944,-521.45415944,9.965e-05,2]
[355580287,1741320643953,-500.0,9.965e-05,2]
[355580288,1741320643963,-500.0,9.965e-05,2]
[355580289,1741320643972,-500.0,9.965e-05,2]
[355580290,1741320643981,-500.0,9.965e-05,2]
[355580291,1741320643991,-500.0,9.965e-05,2]
[355580292,1741320644000,-151.0,9.965e-05,2]
[355580293,1741320644009,-151.0,9.965e-05,2]
[355580294,1741320644019,-500.42201885,9.965e-05,2]
[355580295,1741320644028,-500.0,9.965e-05,2]
[355580296,1741320644037,-531.38882751,9.965e-05,2]
[355580297,1741320644046,-209.48526208,9.965e-05,2]
[355580298,1741320644055,-500.0,9.965e-05,2]
[355580299,1741320644064,-500.0,9.965e-05,2]
[355580300,1741320644073,-823.06,9.965e-05,2]
[355580301,1741320644082,-500.0,9.965e-05,2]
[355580302,1741320644091,-500.0,9.965e-05,2]
[355580303,1741320644100,-500.0,9.965e-05,2]
[355580304,1741320644109,-500.0,9.965e-05,2]
[355580305,1741320644119,-500.0,9.965e-05,2]
[355580306,1741320644128,-500.0,9.965e-05,2]
[355580307,1741320644138,-151.0,9.965e-05,2]
[355580308,1741320644147,-151.0,9.965e-05,2]
[355580309,1741320644156,-151.0,9.965e-05,2]
[355580310,1741320644166,-151.0,9.965e-05,2]
[355580311,1741320644175,-151.0,9.965e-05,2]
[355580312,1741320644185,-500.0,9.965e-05,2]
[355580313,1741320644195,-500.0,9.965e-05,2]
[355580314,1741320644205,-500.0,9.965e-05,2]
[355580315,1741320644214,-507.71651313,9.965e-05,2]
[355580316,1741320644224,-500.0,9.965e-05,2]
[355580317,1741320644235,-500.0,9.965e-05,2]
[355580318,1741320644245,-500.0,9.965e-05,2]
[355580319,1741320644255,-253.15537725,9.965e-05,2]
[355580320,1741320644265,-505.64957988,9.965e-05,2]
[355580321,1741320644275,-500.0,9.965e-05,2]
[355580322,1741320644285,-500.0,9.965e-05,2]
[355580323,1741320644295,-500.0,9.965e-05,2]
[355580324,1741320644304,-500.0,9.965e-05,2]
[355580325,1741320644314,-548.48646508,9.965e-05,2]
[355580326,1741320644324,-503.16925372,9.965e-05,2]
[355580327,1741320644334,-500.0,9.965e-05,2]
[355580328,1741320644344,-503.14501141,9.965e-05,2]
[355580329,1741320644354,-500.0,9.965e-05,2]
[355580330,1741320644364,-500.0,9.965e-05,2]
[355580331,1741320644373,-500.0,9.965e-05,2]
[355580332,1741320644384,-500.0,9.965e-05,2]
[355580333,1741320644393,-500.0,9.965e-05,2]
[355580334,1741320644403,-500.0,9.965e-05,2]
[355580335,1741320644412,-506.42346074,9.965e-05,2]
[355580336,1741320644422,-1055.56,9.965e-05,2]
[355580337,1741320644435,-434.13667746,9.965e-05,2]
[355580338,1741320644444,-1244.17,9.965e-05,2]
[355580339,1741320644454,-500.0,9.965e-05,2]
[355580340,1741320644464,-505.0063248,9.965e-05,2]
[355580341,1741320644475,-500.0,9.965e-05,2]
[355580342,1741320644484,-505.59362304,9.965e-05,2]
[355580343,1741320644493,-700.09,9.965e-05,2]
[355580344,1741320644502,-802.91,9.965e-05,2]
[355580345,1741320644514,-508.3073958,9.965e-05,2]
[355580346,1741320644524,-500.0,9.965e-05,2]
[355580347,1741320644533,-509.23056199,9.965e-05,2]
[355580348,1741320644543,-290.63267983,9.965e-05,2]
[355580349,1741320644552,-500.0,9.965e-05,2]
[355580350,1741320644562,-500.0,9.965e-05,2]
[355580351,1741320644571,-503.31036979,9.965e-05,2]
[355580352,1741320644581,-500.0,9.965e-05,2]
[355580353,1741320644590,-500.0,9.965e-05,2]
[355580354,1741320644601,-674.33,9.965e-05,2]
[355580355,1741320644610,-501.62266473,9.965e-05,2]
[355580356,1741320644620,-500.0,9.965e-05,2]
[355580357,1741320644629,-500.0,9.965e-05,2]
[355580358,1741320644638,-501.18900509,9.965e-05,2]
[355580359,1741320644648,-500.0,9.965e-05,2]
[355580360,1741320644657,-635.65,9.965e-05,2]
[355580361,1741320644667,-999.0,9.965e-05,2]
[355580362,1741320644676,-503.91188698,9.965e-05,2]
[355580363,1741320644687,-500.0,9.965e-05,2]
[355580364,1741320644701,-503.13303488,9.965e-05,2]
[355580365,1741320644710,-510.69529181,9.965e-05,2]
[355580366,1741320644720,-504.52728153,9.965e-05,2]
[355580367,1741320644730,-500.0,9.965e-05,2]
[355580368,1741320644740,-500.0,9.965e-05,2]
[355580369,1741320644751,-500.0,9.965e-05,2]
[355580370,1741320644761,-500.0,9.965e-05,2]
[355580371,1741320644772,-651.34,9.965e-05,2]
[355580372,1741320644781,-500.0,9.965e-05,2]
[355580373,1741320644791,-500.0,9.965e-05,2]
[355580374,1741320644800,-500.0,9.965e-05,2]
[355580375,1741320644810,-500.0,9.965e-05,2]
[355580376,1741320644819,-500.0,9.965e-05,2]
[355580377,1741320644829,-622.24,9.965e-05,2]
[355580378,1741320644838,-528.47826526,9.965e-05,2]
[355580379,1741320644848,-500.0,9.965e-05,2]
[355580380,1741320644857,-500.0,9.965e-05,2]
[355580381,1741320644866,-500.0,9.965e-05,2]
[355580382,1741320644875,-500.0,9.965e-05,2]
[355580383,1741320644884,-500.0,9.965e-05,2]
[355580384,1741320644894,-218.77560661,9.965e-05,2]
[355580385,1741320644904,-438.60519816,9.965e-05,2]
[355580386,1741320644913,-500.0,9.965e-05,2]
[355580387,1741320644922,-514.08933454,9.965e-05,2]
[355580388,1741320644932,-500.0,9.965e-05,2]
[355580389,1741320644941,-866.32,9.965e-05,2]
[355580390,1741320644950,-500.0,9.965e-05,2]
[355580391,1741320644959,-500.0,9.965e-05,2]
[355580392,1741320644968,-855.75,9.965e-05,2]
[355580393,1741320644978,-600.13,9.965e-05,2]
[355580394,1741320644987,-500.0,9.965e-05,2]
[355580395,1741320644996,-605.58,9.965e-05,2]
[355580396,1741320645006,-500.0,9.965e-05,2]
[355580397,1741320645015,-500.0,9.965e-05,2]
[355580398,1741320645024,-511.95,9.965e-05,2]
[355580399,1741320645034,-500.0,9.965e-05,2]
[355580400,1741320645043,-500.0,9.965e-05,2]
[355580401,1741320645053,-612.99,9.965e-05,2]
[355580402,1741320645062,-500.0,9.965e-05,2]
[355580403,1741320645073,-500.0,9.965e-05,2]
[355580404,1741320645082,-529.44,9.965e-05,2]
[355580405,1741320645092,-500.0,9.965e-05,2]
[355580406,1741320645102,-500.0,9.965e-05,2]
[355580407,1741320645113,-500.0,9.965e-05,2]
[355580408,1741320645123,-500.0,9.965e-05,2]
[355580409,1741320645134,-502.27826208,9.965e-05,2]
[355580410,1741320645143,-500.0,9.965e-05,2]
[355580411,1741320645152,-527.15,9.965e-05,2]
[355580412,1741320645161,-500.0,9.965e-05,2]
[355580413,1741320645170,-500.0,9.965e-05,2]
[355580414,1741320645178,-500.0,9.965e-05,2]
[355580415,1741320645188,-500.94703205,9.965e-05,2]
[355580416,1741320645197,-503.52050662,9.965e-05,2]
[355580417,1741320645207,-588.86,9.965e-05,2]
[355580418,1741320645215,-804.36,9.965e-05,2]
[355580419,1741320645225,-500.0,9.965e-05,2]
[355580420,1741320645235,-1107.93,9.965e-05,2]
[355580421,1741320645245,-508.27225356,9.965e-05,2]
[355580422,1741320645255,-506.78347939,9.965e-05,2]
[355580423,1741320645265,-500.0,9.965e-05,2]
[355580424,1741320645275,-500.0,9.965e-05,2]
[355580425,1741320645286,-500.0,9.965e-05,2]
[355580426,1741320645296,-507.98332322,9.965e-05,2]
[355580427,1741320645306,-500.0,9.965e-05,2]
[355580428,1741320645316,-787.46,9.965e-05,2]
[355580429,1741320645326,-500.0,9.965e-05,2]
[355580430,1741320645336,-500.0,9.965e-05,2]
[355580431,1741320645346,-896.67,9.965e-05,2]
[355580432,1741320645355,-595.22,9.965e-05,2]
[355580433,1741320645364,-500.0,9.965e-05,2]
[355580434,1741320645374,-500.0,9.965e-05,2]
[355580435,1741320645383,-1244.28,9.965e-05,2]
[355580436,1741320645392,-3396.22,9.965e-05,2]
[355580437,1741320645401,-686.81,9.965e-05,2]
[355580438,1741320645410,-6784.62,9.965e-05,2]
[355580439,1741320645419,-500.4754733,9.965e-05,2]
[355580440,1741320645428,-2261.68,9.965e-05,2]
[355580441,1741320645438,-1259.0,9.965e-05,2]
[355580442,1741320645447,-1108.35,9.965e-05,2]
[355580443,1741320645457,-500.0,9.965e-05,2]
[355580444,1741320645466,-500.0,9.965e-05,2]
[355580445,1741320645476,-500.0,9.965e-05,2]
[355580446,1741320645485,-500.0,9.965e-05,2]
[355580447,1741320645495,-500.0,9.965e-05,2]
[355580448,1741320645504,-500.0,9.965e-05,2]
[355580449,1741320645514,-500.0,9.965e-05,2]
[355580450,1741320645523,-500.0,9.965e-05,2]
[355580451,1741320645533,-500.0,9.965e-05,2]
[355580452,1741320645543,-503.84346117,9.965e-05,2]
[355580453,1741320645552,-567.2,9.965e-05,2]
[355580454,1741320645562,-500.0,9.965e-05,2]
[355580455,1741320645571,-500.0,9.965e-05,2]
[355580456,1741320645581,-510.50377345,9.965e-05,2]
[355580457,1741320645591,-500.0,9.965e-05,2]
[355580458,1741320645600,-500.0,9.965e-05,2]
[355580460,1741320645610,-504.29183112,9.966e-05,2]
[355580461,1741320645619,-500.36555252,9.966e-05,2]
[355580463,1741320645629,-502.99845888,9.966e-05,2]
[355580464,1741320645639,-506.50121389,9.966e-05,2]
[355580466,1741320645648,-500.0,9.966e-05,2]
[355580467,1741320645657,-507.31911135,9.966e-05,2]
[355580468,1741320645666,-421.95840049,9.966e-05,2]
[355580469,1741320645675,-501.30395025,9.966e-05,2]
[355580470,1741320645686,-500.0,9.966e-05,2]
[355580471,1741320645698,-151.0,9.966e-05,2]
[355580472,1741320645707,-151.0,9.966e-05,2]
[355580473,1741320645716,-151.0,9.966e-05,2]